Workbook

Sheet ค่าใช้จ่ายการตกแต่งห้องน้ำใหม่
B1: เวิร์กชีตค่าใช้จ่ายการตกแต่งห้องน้ำใหม่
B2: หมายเหตุ: คอลัมน์ต่างๆ ในตารางจะแสดงว่าค่าใช้จ่ายจริงสูงกว่าค่าใช้จ่ายที่ประมาณไว้หรือไม่ ตัวเลขสีแดงแสดงถึงค่าใช้จ่ายสูงกว่าที่ประมาณไว้ (ลบ) และสีดำแสดงถึงค่าใช้จ่ายอยู่ภายในงบที่กำหนดไว้ (บวก)
E3: ค่าใช้จ่ายที่ลงรายการ (฿) | H3: ค่าใช้จ่ายทั้งหมด (฿)
B4: พื้นที่ | C4: รายการ | D4: จำนวน | E4: ค่าใช้จ่ายโดยประมาณ | F4: ค่าใช้จ่ายจริง | G4: ผลต่าง | H4: ค่าใช้จ่ายโดยประมาณ | I4: ค่าใช้จ่ายจริง | J4: ผลต่าง
B5: อ่างอาบน้ำ/ตู้อาบน้ำ | C5: อ่างอาบน้ำ, เหล็กหล่อ, 5', มาตรฐาน | D5: 1 | E5: ฿250.00 | F5: =RANDBETWEEN(E5+2,E5+20) -> ฿257.00 | G5: =IFERROR(ค่าใช้จ่าย[[#This Row],[ค่าใช้จ่ายโดยประมาณ]]-ค่าใช้จ่าย[[#This Row],[ค่าใช้จ่ายจริง]], "") -> -฿7.00 | H5: =IFERROR(ค่าใช้จ่าย[[#This Row],[จำนวน]]*ค่าใช้จ่าย[[#This Row],[ค่าใช้จ่ายโดยประมาณ]], "") -> ฿250.00 | I5: =IFERROR(ค่าใช้จ่าย[[#This Row],[จำนวน]]*ค่าใช้จ่าย[[#This Row],[ค่าใช้จ่ายจริง]], "") -> ฿257.00 | J5: =IFERROR(ค่าใช้จ่าย[[#This Row],[ค่าใช้จ่ายโดยประมาณ ]]-ค่าใช้จ่าย[[#This Row],[ค่าใช้จ่ายจริง ]], "") -> -฿7.00
B6: อ่างอาบน้ำ/ตู้อาบน้ำ | C6: ประตูตู้อาบน้ำ, ติดบานพับ, มาตรฐาน | D6: 1 | E6: ฿200.00 | F6: ฿208.00 | G6: =IFERROR(ค่าใช้จ่าย[[#This Row],[ค่าใช้จ่ายโดยประมาณ]]-ค่าใช้จ่าย[[#This Row],[ค่าใช้จ่ายจริง]], "") -> -฿8.00 | H6: =IFERROR(ค่าใช้จ่าย[[#This Row],[จำนวน]]*ค่าใช้จ่าย[[#This Row],[ค่าใช้จ่ายโดยประมาณ]], "") -> ฿200.00 | I6: =IFERROR(ค่าใช้จ่าย[[#This Row],[จำนวน]]*ค่าใช้จ่าย[[#This Row],[ค่าใช้จ่ายจริง]], "") -> ฿208.00 | J6: =IFERROR(ค่าใช้จ่าย[[#This Row],[ค่าใช้จ่ายโดยประมาณ ]]-ค่าใช้จ่าย[[#This Row],[ค่าใช้จ่ายจริง ]], "") -> -฿8.00
B7: อ่างอาบน้ำ/ตู้อาบน้ำ | C7: ฝักบัวอาบน้ำ, มาตรฐาน | D7: 1 | E7: ฿50.00 | F7: ฿66.00 | G7: =IFERROR(ค่าใช้จ่าย[[#This Row],[ค่าใช้จ่ายโดยประมาณ]]-ค่าใช้จ่าย[[#This Row],[ค่าใช้จ่ายจริง]], "") -> -฿16.00 | H7: =IFERROR(ค่าใช้จ่าย[[#This Row],[จำนวน]]*ค่าใช้จ่าย[[#This Row],[ค่าใช้จ่ายโดยประมาณ]], "") -> ฿50.00 | I7: =IFERROR(ค่าใช้จ่าย[[#This Row],[จำนวน]]*ค่าใช้จ่าย[[#This Row],[ค่าใช้จ่ายจริง]], "") -> ฿66.00 | J7: =IFERROR(ค่าใช้จ่าย[[#This Row],[ค่าใช้จ่ายโดยประมาณ ]]-ค่าใช้จ่าย[[#This Row],[ค่าใช้จ่ายจริง ]], "") -> -฿16.00
B8: อ่างอาบน้ำ/ตู้อาบน้ำ | C8: ขอบอ่างอาบน้ำ, มาตรฐาน | D8: 1 | E8: ฿200.00 | F8: ฿205.00 | G8: =IFERROR(ค่าใช้จ่าย[[#This Row],[ค่าใช้จ่ายโดยประมาณ]]-ค่าใช้จ่าย[[#This Row],[ค่าใช้จ่ายจริง]], "") -> -฿5.00 | H8: =IFERROR(ค่าใช้จ่าย[[#This Row],[จำนวน]]*ค่าใช้จ่าย[[#This Row],[ค่าใช้จ่ายโดยประมาณ]], "") -> ฿200.00 | I8: =IFERROR(ค่าใช้จ่าย[[#This Row],[จำนวน]]*ค่าใช้จ่าย[[#This Row],[ค่าใช้จ่ายจริง]], "") -> ฿205.00 | J8: =IFERROR(ค่าใช้จ่าย[[#This Row],[ค่าใช้จ่ายโดยประมาณ ]]-ค่าใช้จ่าย[[#This Row],[ค่าใช้จ่ายจริง ]], "") -> -฿5.00
B9: ชั้นวางของ | C9: ตู้ยา 24'', หรูหรา | D9: 1 | E9: ฿200.00 | F9: ฿213.00 | G9: =IFERROR(ค่าใช้จ่าย[[#This Row],[ค่าใช้จ่ายโดยประมาณ]]-ค่าใช้จ่าย[[#This Row],[ค่าใช้จ่ายจริง]], "") -> -฿13.00 | H9: =IFERROR(ค่าใช้จ่าย[[#This Row],[จำนวน]]*ค่าใช้จ่าย[[#This Row],[ค่าใช้จ่ายโดยประมาณ]], "") -> ฿200.00 | I9: =IFERROR(ค่าใช้จ่าย[[#This Row],[จำนวน]]*ค่าใช้จ่าย[[#This Row],[ค่าใช้จ่ายจริง]], "") -> ฿213.00 | J9: =IFERROR(ค่าใช้จ่าย[[#This Row],[ค่าใช้จ่ายโดยประมาณ ]]-ค่าใช้จ่าย[[#This Row],[ค่าใช้จ่ายจริง ]], "") -> -฿13.00
B10: ชั้นวางของ | C10: ชุดอ่างล้างหน้า 30'' มาตรฐาน | D10: 2 | E10: ฿100.00 | F10: ฿118.00 | G10: =IFERROR(ค่าใช้จ่าย[[#This Row],[ค่าใช้จ่ายโดยประมาณ]]-ค่าใช้จ่าย[[#This Row],[ค่าใช้จ่ายจริง]], "") -> -฿18.00 | H10: =IFERROR(ค่าใช้จ่าย[[#This Row],[จำนวน]]*ค่าใช้จ่าย[[#This Row],[ค่าใช้จ่ายโดยประมาณ]], "") -> ฿200.00 | I10: =IFERROR(ค่าใช้จ่าย[[#This Row],[จำนวน]]*ค่าใช้จ่าย[[#This Row],[ค่าใช้จ่ายจริง]], "") -> ฿236.00 | J10: =IFERROR(ค่าใช้จ่าย[[#This Row],[ค่าใช้จ่ายโดยประมาณ ]]-ค่าใช้จ่าย[[#This Row],[ค่าใช้จ่ายจริง ]], "") -> -฿36.00
B11: เคาน์เตอร์ | C11: กระเบื้องเซรามิค, หรูหรา (ความยาวเป็นฟุต) | D11: 5 | E11: ฿22.50 | F11: ฿30.00 | G11: =IFERROR(ค่าใช้จ่าย[[#This Row],[ค่าใช้จ่ายโดยประมาณ]]-ค่าใช้จ่าย[[#This Row],[ค่าใช้จ่ายจริง]], "") -> -฿7.50 | H11: =IFERROR(ค่าใช้จ่าย[[#This Row],[จำนวน]]*ค่าใช้จ่าย[[#This Row],[ค่าใช้จ่ายโดยประมาณ]], "") -> ฿112.50 | I11: =IFERROR(ค่าใช้จ่าย[[#This Row],[จำนวน]]*ค่าใช้จ่าย[[#This Row],[ค่าใช้จ่ายจริง]], "") -> ฿150.00 | J11: =IFERROR(ค่าใช้จ่าย[[#This Row],[ค่าใช้จ่ายโดยประมาณ ]]-ค่าใช้จ่าย[[#This Row],[ค่าใช้จ่ายจริง ]], "") -> -฿37.50
B12: ก๊อกน้ำ | C12: หัวก็อก, อ่างอาบน้ำ, มาตรฐาน | D12: 1 | E12: ฿90.00 | F12: ฿107.00 | G12: =IFERROR(ค่าใช้จ่าย[[#This Row],[ค่าใช้จ่ายโดยประมาณ]]-ค่าใช้จ่าย[[#This Row],[ค่าใช้จ่ายจริง]], "") -> -฿17.00 | H12: =IFERROR(ค่าใช้จ่าย[[#This Row],[จำนวน]]*ค่าใช้จ่าย[[#This Row],[ค่าใช้จ่ายโดยประมาณ]], "") -> ฿90.00 | I12: =IFERROR(ค่าใช้จ่าย[[#This Row],[จำนวน]]*ค่าใช้จ่าย[[#This Row],[ค่าใช้จ่ายจริง]], "") -> ฿107.00 | J12: =IFERROR(ค่าใช้จ่าย[[#This Row],[ค่าใช้จ่ายโดยประมาณ ]]-ค่าใช้จ่าย[[#This Row],[ค่าใช้จ่ายจริง ]], "") -> -฿17.00
B13: ก๊อกน้ำ | C13: หัวก๊อก, ตู้อาบน้ำ, ด้ามจับเดียว, มาตรฐาน | D13: 1 | E13: ฿115.00 | F13: ฿128.00 | G13: =IFERROR(ค่าใช้จ่าย[[#This Row],[ค่าใช้จ่ายโดยประมาณ]]-ค่าใช้จ่าย[[#This Row],[ค่าใช้จ่ายจริง]], "") -> -฿13.00 | H13: =IFERROR(ค่าใช้จ่าย[[#This Row],[จำนวน]]*ค่าใช้จ่าย[[#This Row],[ค่าใช้จ่ายโดยประมาณ]], "") -> ฿115.00 | I13: =IFERROR(ค่าใช้จ่าย[[#This Row],[จำนวน]]*ค่าใช้จ่าย[[#This Row],[ค่าใช้จ่ายจริง]], "") -> ฿128.00 | J13: =IFERROR(ค่าใช้จ่าย[[#This Row],[ค่าใช้จ่ายโดยประมาณ ]]-ค่าใช้จ่าย[[#This Row],[ค่าใช้จ่ายจริง ]], "") -> -฿13.00
B14: ก๊อกน้ำ | C14: หัวก๊อกอ่างล้างหน้า, มาตรฐาน | D14: 1 | E14: ฿95.00 | F14: ฿104.00 | G14: =IFERROR(ค่าใช้จ่าย[[#This Row],[ค่าใช้จ่ายโดยประมาณ]]-ค่าใช้จ่าย[[#This Row],[ค่าใช้จ่ายจริง]], "") -> -฿9.00 | H14: =IFERROR(ค่าใช้จ่าย[[#This Row],[จำนวน]]*ค่าใช้จ่าย[[#This Row],[ค่าใช้จ่ายโดยประมาณ]], "") -> ฿95.00 | I14: =IFERROR(ค่าใช้จ่าย[[#This Row],[จำนวน]]*ค่าใช้จ่าย[[#This Row],[ค่าใช้จ่ายจริง]], "") -> ฿104.00 | J14: =IFERROR(ค่าใช้จ่าย[[#This Row],[ค่าใช้จ่ายโดยประมาณ ]]-ค่าใช้จ่าย[[#This Row],[ค่าใช้จ่ายจริง ]], "") -> -฿9.00
B15: วัสดุปูพื้น | C15: กระเบื้องเซรามิค, มาตรฐาน (ตารางฟุต) | D15: 35 | E15: ฿12.00 | F15: ฿18.00 | G15: =IFERROR(ค่าใช้จ่าย[[#This Row],[ค่าใช้จ่ายโดยประมาณ]]-ค่าใช้จ่าย[[#This Row],[ค่าใช้จ่ายจริง]], "") -> -฿6.00 | H15: =IFERROR(ค่าใช้จ่าย[[#This Row],[จำนวน]]*ค่าใช้จ่าย[[#This Row],[ค่าใช้จ่ายโดยประมาณ]], "") -> ฿420.00 | I15: =IFERROR(ค่าใช้จ่าย[[#This Row],[จำนวน]]*ค่าใช้จ่าย[[#This Row],[ค่าใช้จ่ายจริง]], "") -> ฿630.00 | J15: =IFERROR(ค่าใช้จ่าย[[#This Row],[ค่าใช้จ่ายโดยประมาณ ]]-ค่าใช้จ่าย[[#This Row],[ค่าใช้จ่ายจริง ]], "") -> -฿210.00
B16: ฮาร์ดแวร์ | C16: ราวแขวนผ้าเช็ดตัว, มาตรฐาน | D16: 2 | E16: ฿15.00 | F16: ฿21.00 | G16: =IFERROR(ค่าใช้จ่าย[[#This Row],[ค่าใช้จ่ายโดยประมาณ]]-ค่าใช้จ่าย[[#This Row],[ค่าใช้จ่ายจริง]], "") -> -฿6.00 | H16: =IFERROR(ค่าใช้จ่าย[[#This Row],[จำนวน]]*ค่าใช้จ่าย[[#This Row],[ค่าใช้จ่ายโดยประมาณ]], "") -> ฿30.00 | I16: =IFERROR(ค่าใช้จ่าย[[#This Row],[จำนวน]]*ค่าใช้จ่าย[[#This Row],[ค่าใช้จ่ายจริง]], "") -> ฿42.00 | J16: =IFERROR(ค่าใช้จ่าย[[#This Row],[ค่าใช้จ่ายโดยประมาณ ]]-ค่าใช้จ่าย[[#This Row],[ค่าใช้จ่ายจริง ]], "") -> -฿12.00
B17: ฮาร์ดแวร์ | C17: ที่ใส่กระดาษชำระ | D17: 1 | E17: ฿10.00 | F17: ฿16.00 | G17: =IFERROR(ค่าใช้จ่าย[[#This Row],[ค่าใช้จ่ายโดยประมาณ]]-ค่าใช้จ่าย[[#This Row],[ค่าใช้จ่ายจริง]], "") -> -฿6.00 | H17: =IFERROR(ค่าใช้จ่าย[[#This Row],[จำนวน]]*ค่าใช้จ่าย[[#This Row],[ค่าใช้จ่ายโดยประมาณ]], "") -> ฿10.00 | I17: =IFERROR(ค่าใช้จ่าย[[#This Row],[จำนวน]]*ค่าใช้จ่าย[[#This Row],[ค่าใช้จ่ายจริง]], "") -> ฿16.00 | J17: =IFERROR(ค่าใช้จ่าย[[#This Row],[ค่าใช้จ่ายโดยประมาณ ]]-ค่าใช้จ่าย[[#This Row],[ค่าใช้จ่ายจริง ]], "") -> -฿6.00
B18: โคมไฟ | C18: ไฟหลุม, มาตรฐาน | D18: 4 | E18: ฿25.00 | F18: ฿28.00 | G18: =IFERROR(ค่าใช้จ่าย[[#This Row],[ค่าใช้จ่ายโดยประมาณ]]-ค่าใช้จ่าย[[#This Row],[ค่าใช้จ่ายจริง]], "") -> -฿3.00 | H18: =IFERROR(ค่าใช้จ่าย[[#This Row],[จำนวน]]*ค่าใช้จ่าย[[#This Row],[ค่าใช้จ่ายโดยประมาณ]], "") -> ฿100.00 | I18: =IFERROR(ค่าใช้จ่าย[[#This Row],[จำนวน]]*ค่าใช้จ่าย[[#This Row],[ค่าใช้จ่ายจริง]], "") -> ฿112.00 | J18: =IFERROR(ค่าใช้จ่าย[[#This Row],[ค่าใช้จ่ายโดยประมาณ ]]-ค่าใช้จ่าย[[#This Row],[ค่าใช้จ่ายจริง ]], "") -> -฿12.00
B19: อ่างล้างจาน | C19: โถสุขภัณฑ์, มาตรฐาน | D19: 2 | E19: ฿60.00 | F19: ฿69.00 | G19: =IFERROR(ค่าใช้จ่าย[[#This Row],[ค่าใช้จ่ายโดยประมาณ]]-ค่าใช้จ่าย[[#This Row],[ค่าใช้จ่ายจริง]], "") -> -฿9.00 | H19: =IFERROR(ค่าใช้จ่าย[[#This Row],[จำนวน]]*ค่าใช้จ่าย[[#This Row],[ค่าใช้จ่ายโดยประมาณ]], "") -> ฿120.00 | I19: =IFERROR(ค่าใช้จ่าย[[#This Row],[จำนวน]]*ค่าใช้จ่าย[[#This Row],[ค่าใช้จ่ายจริง]], "") -> ฿138.00 | J19: =IFERROR(ค่าใช้จ่าย[[#This Row],[ค่าใช้จ่ายโดยประมาณ ]]-ค่าใช้จ่าย[[#This Row],[ค่าใช้จ่ายจริง ]], "") -> -฿18.00
B20: อื่นๆ | D20: 1 | E20: ฿20.00 | F20: ฿40.00 | G20: =IFERROR(ค่าใช้จ่าย[[#This Row],[ค่าใช้จ่ายโดยประมาณ]]-ค่าใช้จ่าย[[#This Row],[ค่าใช้จ่ายจริง]], "") -> -฿20.00 | H20: =IFERROR(ค่าใช้จ่าย[[#This Row],[จำนวน]]*ค่าใช้จ่าย[[#This Row],[ค่าใช้จ่ายโดยประมาณ]], "") -> ฿20.00 | I20: =IFERROR(ค่าใช้จ่าย[[#This Row],[จำนวน]]*ค่าใช้จ่าย[[#This Row],[ค่าใช้จ่ายจริง]], "") -> ฿40.00 | J20: =IFERROR(ค่าใช้จ่าย[[#This Row],[ค่าใช้จ่ายโดยประมาณ ]]-ค่าใช้จ่าย[[#This Row],[ค่าใช้จ่ายจริง ]], "") -> -฿20.00
B21: ผลรวมย่อย | E21: =SUBTOTAL(109,ค่าใช้จ่าย[ค่าใช้จ่ายโดยประมาณ]) -> ฿1,464.50 | F21: =SUBTOTAL(109,ค่าใช้จ่าย[ค่าใช้จ่ายจริง]) -> ฿1,628.00 | G21: =SUBTOTAL(109,ค่าใช้จ่าย[ผลต่าง]) -> -฿163.50 | H21: =SUBTOTAL(109,ค่าใช้จ่าย[[ค่าใช้จ่ายโดยประมาณ ]]) -> ฿2,212.50 | I21: =SUBTOTAL(109,ค่าใช้จ่าย[[ค่าใช้จ่ายจริง ]]) -> ฿2,652.00 | J21: =SUBTOTAL(109,ค่าใช้จ่าย[[ผลต่าง ]]) -> -฿439.50
B22: ค่าใช้จ่ายที่ไม่ได้คาดการณ์ไว้ (เพิ่มขึ้น 30% โดยประมาณ) | E22: =IFERROR(ค่าใช้จ่าย[[#Totals],[ค่าใช้จ่ายโดยประมาณ]]*0.3, "") -> ฿439.35 | H22: =IFERROR(ค่าใช้จ่าย[[#Totals],[ค่าใช้จ่ายโดยประมาณ ]]*0.3, "") -> ฿663.75
B23: ค่าใช้จ่ายทั้งหมด | E23: =IFERROR(SUM(E21:E21), "") -> ฿1,464.50 | H23: =IFERROR(SUM(ค่าใช้จ่าย[[#Totals],[ค่าใช้จ่ายโดยประมาณ ]],ค่าใช้จ่ายที่เกิน), "") -> ฿2,876.25
